fUSD/lending_fUSD_20260703
["ID","MTS","AMOUNT","RATE_DAILY","PERIOD"]
[426957305,1783062632000,-785.72730609,0.000252,2]
[426957304,1783062632000,-2000.0,0.000252,2]
[426957307,1783062632000,-1056.42037804,0.000252,2]
[426957349,1783062632000,-199.65606799,0.00025577,14]
[426957312,1783062632000,-5936.68674235,0.000252,2]
[426957315,1783062632000,-234.42489464,0.000252,2]
[426957317,1783062632000,-1287.69,0.00025247,2]
[426957320,1783062632000,-200.0,0.0002525,2]
[426957322,1783062632000,-1785.0,0.000253,2]
[426957328,1783062632000,-164.0,0.00025341,5]
[426957324,1783062632000,-1818.0,0.000253,2]
[426957326,1783062632000,-2500.0,0.000253,2]
[426957332,1783062632000,-2892.8178917,0.00025399,2]
[426957330,1783062632000,-1038.49536399,0.00025342,2]
[426957334,1783062632000,-785.72730609,0.000254,2]
[426957338,1783062632000,-10625.8092174,0.000254,2]
[426957336,1783062632000,-1056.42037804,0.000254,2]
[426957309,1783062632000,-4689.12247505,0.000252,2]
[426957389,1783062632000,-500.0,0.00025866,2]
[426957428,1783062632000,-500.0,0.00025866,2]
[426957397,1783062632000,-500.0,0.00025866,2]
[426957440,1783062632000,-500.0,0.00025866,2]
[426957441,1783062632000,-500.0,0.00025866,2]
[426957437,1783062632000,-500.0,0.00025866,2]
[426957443,1783062632000,-500.0,0.00025866,2]
[426957446,1783062632000,-500.0,0.00025866,2]
[426957447,1783062632000,-500.0,0.00025866,2]
[426957445,1783062632000,-500.0,0.00025866,2]
[426957448,1783062632000,-195.25386244,0.00025866,2]
[426957444,1783062632000,-500.0,0.00025866,2]
[426957451,1783062632000,-500.0,0.00025866,2]
[426957449,1783062632000,-646.16941589,0.00025866,2]
[426957454,1783062632000,-2892.81789168,0.00025877,2]
[426957455,1783062632000,-785.72730609,0.000259,2]
[426957453,1783062632000,-4367.795,0.00025867,11]
[426957452,1783062632000,-350.0,0.00025866,2]
[426957456,1783062632000,-1056.42037804,0.000259,2]
[426957458,1783062632000,-205.7051255,0.000259,2]
[426957459,1783062632000,-329.92331128,0.00025954,2]
[426957460,1783062632000,-500.0,0.00025974,2]
[426957457,1783062632000,-10625.8092174,0.000259,2]
[426957461,1783062632000,-151.0,0.00025997,7]
[426957463,1783062632000,-46527.97189782,0.00026,2]
[426957465,1783062632000,-353.56729414,0.00026099,2]
[426957464,1783062632000,-637.09344867,0.00026099,2]
[426957400,1783062632000,-500.0,0.00025866,2]
[426957442,1783062632000,-500.0,0.00025866,2]
[426957439,1783062632000,-500.0,0.00025866,2]
[426957450,1783062632000,-500.0,0.00025866,2]
[426957436,1783062632000,-500.0,0.00025866,2]
[426957438,1783062632000,-500.0,0.00025866,2]
[426957402,1783062632000,-500.0,0.00025866,2]
[426957404,1783062632000,-500.0,0.00025866,2]
[426957406,1783062632000,-500.0,0.00025866,2]
[426957408,1783062632000,-500.0,0.00025866,2]
[426957418,1783062632000,-500.0,0.00025866,2]
[426957412,1783062632000,-500.0,0.00025866,2]
[426957414,1783062632000,-500.0,0.00025866,2]
[426957416,1783062632000,-500.0,0.00025866,2]
[426957422,1783062632000,-500.0,0.00025866,2]
[426957420,1783062632000,-500.0,0.00025866,2]
[426957421,1783062632000,-500.0,0.00025866,2]
[426957419,1783062632000,-500.0,0.00025866,2]
[426957410,1783062632000,-500.0,0.00025866,2]
[426957424,1783062632000,-500.0,0.00025866,2]
[426957435,1783062632000,-587.84042808,0.00025866,2]
[426957423,1783062632000,-500.0,0.00025866,2]
[426957434,1783062632000,-500.0,0.00025866,2]
[426957432,1783062632000,-500.0,0.00025866,2]
[426957433,1783062632000,-500.0,0.00025866,2]
[426957425,1783062632000,-602.21466686,0.00025866,2]
[426957431,1783062632000,-500.0,0.00025866,2]
[426957426,1783062632000,-500.0,0.00025866,2]
[426957427,1783062632000,-500.0,0.00025866,2]
[426957462,1783062632000,-3472.02810218,0.00026,2]
[426957430,1783062632000,-500.0,0.00025866,2]
[426957429,1783062632000,-500.0,0.00025866,2]
[426957491,1783062633000,-248.86,0.00026487,2]
[426957482,1783062633000,-277.74592276,0.00026397,2]
[426957487,1783062633000,-248.85,0.00026464,2]
[426957488,1783062633000,-248.85,0.00026464,2]
[426957490,1783062633000,-185.37,0.00026464,2]
[426957484,1783062633000,-2713.39975043,0.00026425,2]
[426957489,1783062633000,-248.85,0.00026464,2]
[426957499,1783062633000,-200.0,0.00026585,2]
[426957495,1783062633000,-1700.34517,0.0002653,2]
[426957493,1783062633000,-10625.8092174,0.000265,2]
[426957494,1783062633000,-1700.34517,0.0002653,2]
[426957496,1783062633000,-1700.34517,0.0002653,2]
[426957497,1783062633000,-300.0,0.00026532,2]
[426957483,1783062633000,-500.0,0.00026424,2]
[426957500,1783062633000,-200.0,0.00026585,2]
[426957492,1783062633000,-1056.42037804,0.000265,2]
[426957485,1783062633000,-248.86,0.00026464,2]
[426957468,1783062633000,-500.0,0.00026099,2]
[426957481,1783062633000,-179.43,0.00026371,2]
[426957501,1783062633000,-355.46681934,0.00026593,2]
[426957466,1783062633000,-500.0,0.00026099,2]
[426957467,1783062633000,-606.66678624,0.00026099,2]
[426957469,1783062633000,-242.95184654,0.0002616,2]
[426957470,1783062633000,-242.20210322,0.0002616,2]
[426957473,1783062633000,-606.50638601,0.00026163,2]
[426957474,1783062633000,-785.72730609,0.000262,2]
[426957472,1783062633000,-320.76555519,0.0002616,2]
[426957471,1783062633000,-303.52006765,0.0002616,2]
[426957475,1783062633000,-1056.42037804,0.000262,2]
[426957476,1783062633000,-10625.8092174,0.000262,2]
[426957477,1783062633000,-205.7051255,0.000262,2]
[426957479,1783062633000,-2892.81789168,0.00026355,2]
[426957480,1783062633000,-246.0,0.00026355,5]
[426957478,1783062633000,-500.0,0.00026217,2]
[426957486,1783062633000,-248.85,0.00026464,2]
[426957503,1783062633000,-350.0,0.00026605,2]
[426957498,1783062633000,-200.0,0.00026585,2]
[426957504,1783062633000,-182.49657245,0.00026663,2]
[426957521,1783062633000,-123.15021376,0.00026701,5]
[426957525,1783062633000,-149.4867423,0.00026707,5]
[426957528,1783062633000,-53.5132577,0.00026728,2]
[426957527,1783062633000,-446.4867423,0.00026728,2]
[426957530,1783062633000,-500.0,0.00026729,2]
[426957526,1783062633000,-3.5132577,0.00026707,5]
[426957531,1783062633000,-150.0,0.00026731,5]
[426957524,1783062633000,-151.0,0.00026702,5]
[426957532,1783062633000,-330.70562287,0.00026736,2]
[426957535,1783062633000,-52.52017907,0.00026767,2]
[426957533,1783062633000,-172.97565419,0.00026742,2]
[426957536,1783062633000,-305.63478009,0.00026767,2]
[426957538,1783062633000,-505.36101861,0.00026767,2]
[426957537,1783062633000,-994.3940699,0.00026767,2]
[426957539,1783062633000,-1202.08995233,0.00026767,2]
[426957502,1783062633000,-500.0,0.000266,9]
[426957534,1783062633000,-676.0,0.0002675,5]
[426957522,1783062633000,-150.0,0.00026702,5]
[426957529,1783062633000,-500.0,0.00026729,2]
[426957520,1783062633000,-612.36360206,0.00026701,5]
[426957507,1783062633000,-211.4524018,0.000267,2]
[426957506,1783062633000,-987.98477945,0.00026679,2]
[426957505,1783062633000,-176.20735755,0.00026666,2]
[426957540,1783062633000,-470.02763998,0.00026767,2]
[426957514,1783062633000,-421.86,0.000267,30]
[426957513,1783062633000,-163.33736492,0.000267,2]
[426957510,1783062633000,-1000.0,0.000267,9]
[426957512,1783062633000,-10625.8092174,0.000267,2]
[426957508,1783062633000,-4964.5952,0.000267,2]
[426957511,1783062633000,-1056.42037804,0.000267,2]
[426957515,1783062633000,-221.94320479,0.000267,30]
[426957517,1783062633000,-228.6317143,0.000267,2]
[426957518,1783062633000,-1696.48618418,0.00026701,5]
[426957516,1783062633000,-174.34275617,0.000267,5]
[426957519,1783062633000,-500.0,0.00026701,5]
[426957509,1783062633000,-269.40404778,0.000267,2]
[426957523,1783062633000,-151.0,0.00026702,5]
[426957542,1783062637000,-753.28,0.00024174,2]
[426957548,1783062638000,-3201.89119458,0.00026,2]
[426957547,1783062638000,-4730.98108796,0.00026,2]
[426957546,1783062638000,-983.05549797,0.00026,2]
[426957545,1783062638000,-241.92162483,0.00026,2]
[426957544,1783062638000,-167.53,0.00025526,7]
[426957543,1783062638000,-167.53,0.00024658,2]
[426957549,1783062638000,-1165.45033526,0.00026,2]
[426957611,1783062640000,-2089.56405346,0.00026,2]
[426957618,1783062643000,-3681.0739166,0.00026,2]
[426957635,1783062646000,-992.0,0.00026767,2]
[426957636,1783062646000,-7596.8745148,0.00026779,2]
[426957634,1783062646000,-1292.97236002,0.00026767,2]
[426957631,1783062646000,-534.51447248,0.00026,2]
[426957633,1783062646000,-500.0,0.00026099,2]
[426957630,1783062646000,-1287.98,0.00025876,2]
[426957632,1783062646000,-13893.73781686,0.00026,2]
[426957638,1783062646000,-13900.4447465,0.00026779,2]
[426957646,1783062646000,-26967.13304672,0.0002678,2]
[426957643,1783062646000,-532.87357416,0.00026779,2]
[426957645,1783062646000,-72351.77216195,0.0002678,2]
[426957642,1783062646000,-500.0,0.00026779,2]
[426957644,1783062646000,-500.0,0.00026779,2]
[426957637,1783062646000,-4133.5695031,0.00026779,2]
[426957641,1783062646000,-500.0,0.00026779,2]
[426957639,1783062646000,-507.09677297,0.00026779,2]
[426957640,1783062646000,-500.0,0.00026779,2]
[426957669,1783062833000,-4730.9811,0.00022059,120]
[426957670,1783062848000,527.4814,0.00022059,120]
[426957679,1783063278000,-151.0,0.0001806,2]
[426957680,1783063278000,-151.0,0.0001806,2]
[426957681,1783063278000,-297.18289305,0.0001808,2]
[426957682,1783063278000,-501.0,0.000181,2]
[426957683,1783063306000,-386.08746836,0.00019866,2]
[426957684,1783063306000,-354.62771769,0.00019866,2]
[426957689,1783063364000,-178.30068043,0.0002058,2]
[426957688,1783063364000,-150.0,0.0002058,2]
[426957687,1783063364000,-150.0,0.0002058,2]
[426957686,1783063364000,-150.0,0.0002058,2]
[426957685,1783063364000,-150.0,0.0002058,2]
[426957692,1783063381000,-530.80124047,0.00021925,2]
[426957691,1783063381000,-150.0,0.00021918,2]
[426957690,1783063381000,-500.0,0.00021818,2]
[426957697,1783063831000,-171.67,0.00016712,2]
[426957698,1783063831000,-273.40826161,0.00017386,2]
[426957700,1783063832000,-151.0,0.0001806,2]
[426957757,1783063832000,-150.0,0.00021925,2]
[426957758,1783063832000,-153.0,0.00021925,2]
[426957755,1783063832000,-9999.99,0.00021925,2]
[426957750,1783063832000,-500.0,0.00021718,2]
[426957752,1783063832000,-150.0,0.00021924,2]
[426957753,1783063832000,-27205.80761638,0.00021925,2]
[426957754,1783063832000,-299.99,0.00021925,7]
[426957751,1783063832000,-150.0,0.00021918,2]
[426957749,1783063832000,-4560.48421794,0.00021273,2]
[426957728,1783063832000,-137.6739957,0.00021273,2]
[426957710,1783063832000,-11159.1299,0.00021273,2]
[426957705,1783063832000,-255.68934479,0.00021273,2]
[426957708,1783063832000,-479.07378065,0.00021273,2]
[426957707,1783063832000,-4095.58755867,0.00021273,2]
[426957709,1783063832000,-897.92054704,0.00021273,2]
[426957704,1783063832000,-237.16537378,0.00019,2]
[426957706,1783063832000,-1158.84065521,0.00021273,2]
[426957702,1783063832000,-500.0,0.00018384,2]
[426957703,1783063832000,-263.83462622,0.00019,2]
[426957701,1783063832000,-600.0,0.00018384,2]
[426957699,1783063832000,-151.0,0.0001806,2]
[426957756,1783063832000,-150.99,0.00021925,2]
[426957759,1783063832000,-152.0,0.00021925,2]
[426957773,1783063832000,-250.0,0.00022339,2]
[426957763,1783063832000,-151.0,0.00021935,2]
[426957760,1783063832000,-9999.99,0.00021925,2]
[426957783,1783063832000,-667.95,0.00023064,2]
[426957784,1783063832000,-883.0,0.00023297,2]
[426957782,1783063832000,-150.0,0.00023014,2]
[426957785,1783063832000,-909.0,0.00023297,2]
[426957781,1783063832000,-150.0,0.00022955,2]
[426957780,1783063832000,-1375.96,0.00022955,2]
[426957779,1783063832000,-1739.29,0.00022897,2]
[426957778,1783063832000,-2443.66,0.00022693,2]
[426957775,1783063832000,-200.0,0.00022449,2]
[426957776,1783063832000,-157.75,0.00022649,2]
[426957777,1783063832000,-12137.16,0.00022649,2]
[426957771,1783063832000,-200.0,0.00022251,2]
[426957762,1783063832000,-9999.99,0.00021925,2]
[426957761,1783063832000,-225.63,0.00021925,2]
[426957764,1783063832000,-151.0,0.00021986,2]
[426957774,1783063832000,-363.63298794,0.00022386,2]
[426957766,1783063832000,-170.72483288,0.00022206,2]
[426957765,1783063832000,-153.0,0.00021986,2]
[426957767,1783063832000,-170.72483288,0.00022206,2]
[426957769,1783063832000,-12672.85,0.00022219,2]
[426957772,1783063832000,-879.98,0.00022331,2]
[426957770,1783063832000,-134110.74,0.00022236,2]
[426957768,1783063832000,-500.0,0.00022219,2]
[426957791,1783063833000,-667.95,0.0002364,2]
[426957788,1783063833000,-203.1798163,0.00023506,2]
[426957786,1783063833000,-235.04470571,0.00023461,7]
[426957790,1783063833000,-25410.16370968,0.00023553,2]
[426957789,1783063833000,-789.64143337,0.00023553,2]
[426957792,1783063833000,-197.21,0.00023648,2]
[426957787,1783063833000,-414.64672161,0.00023461,7]
[426957793,1783063833000,-914.0,0.00023683,2]
[426957794,1783063833000,-150.98478653,0.00023686,2]
[426957800,1783063833000,-172.0340016,0.000239,2]
[426957797,1783063833000,-68.03634281,0.00023853,2]
[426957799,1783063833000,-284.54162325,0.000239,2]
[426957796,1783063833000,-431.96365719,0.00023853,2]
[426957795,1783063833000,-349.01521347,0.00023686,2]
[426957798,1783063833000,-194.71,0.00023853,2]
[426957827,1783063838000,-478.72305457,0.00024127,2]
[426957826,1783063838000,-203.77846538,0.00024106,2]
[426957829,1783063838000,-667.95,0.00024217,2]
[426957833,1783063838000,-1500.0,0.00024306,2]
[426957828,1783063838000,-500.0,0.00024173,2]
[426957831,1783063838000,-1500.0,0.00024306,2]
[426957830,1783063838000,-1500.0,0.00024306,2]
[426957832,1783063838000,-1500.0,0.00024306,2]
[426957824,1783063838000,-167.21602736,0.00024053,2]
[426957834,1783063838000,-1500.0,0.00024306,2]
[426957838,1783063838000,-154.8471183,0.00024397,2]
[426957837,1783063838000,-12721.54934083,0.00024336,2]
[426957839,1783063838000,-268.9,0.0002442,2]
[426957841,1783063838000,-5771.20291204,0.00024561,2]
[426957840,1783063838000,-3967.13439424,0.00024495,2]
[426957836,1783063838000,-1500.0,0.00024306,2]
[426957825,1783063838000,-2000.0,0.00024092,2]
[426957818,1783063838000,-500.0,0.0002403,2]
[426957820,1783063838000,-500.0,0.0002403,2]
[426957842,1783063838000,-500.0,0.00024658,2]
[426957805,1783063838000,-500.0,0.00022235,2]
[426957813,1783063838000,-620.28669714,0.00023961,7]
[426957809,1783063838000,-150.0,0.000239,2]
[426957807,1783063838000,-107.29255444,0.000239,2]
[426957808,1783063838000,-150.0,0.000239,2]
[426957811,1783063838000,-3967.13439433,0.00023929,2]
[426957823,1783063838000,-59433.45973214,0.00024031,2]
[426957814,1783063838000,-5000.0,0.00023999,2]
[426957810,1783063838000,-207.42226057,0.000239,2]
[426957816,1783063838000,-281.08947504,0.0002403,2]
[426957817,1783063838000,-338.03072983,0.0002403,2]
[426957815,1783063838000,-21370.84,0.00024008,2]
[426957819,1783063838000,-434.31815459,0.0002403,2]
[426957822,1783063838000,-500.0,0.0002403,2]
[426957821,1783063838000,-576.4116021,0.0002403,2]
[426957812,1783063838000,-2500.0,0.00023931,2]
[426957843,1783063838000,-501.845442,0.00024658,2]
[426957835,1783063838000,-1500.0,0.00024306,2]
[426957845,1783063838000,-165.17,0.00024658,2]
[426957867,1783063838000,-1072.86869142,0.00025327,2]
[426957868,1783063838000,-667.95,0.0002537,2]
[426957870,1783063838000,-768.96859964,0.000254,2]
[426957871,1783063838000,-308.55768825,0.000254,2]
[426957872,1783063838000,-10853.25428127,0.000254,2]
[426957869,1783063838000,-1178.59095913,0.000254,2]
[426957873,1783063838000,-1286.44185965,0.000254,2]
[426957866,1783063838000,-1286.44185965,0.000252,2]
[426957875,1783063838000,-1415.48867581,0.00025462,2]
[426957876,1783063838000,-155.76472,0.00025462,2]
[426957884,1783063838000,-219.55097977,0.000255,2]
[426957887,1783063838000,-253.0,0.0002552,2]
[426957889,1783063838000,-3967.13439424,0.00025628,2]
[426957891,1783063838000,-248.85,0.00025642,2]
[426957893,1783063838000,-248.85,0.00025665,2]
[426957844,1783063838000,-1000.0,0.00024658,2]
[426957874,1783063838000,-450.65132243,0.00025462,2]
[426957864,1783063838000,-308.55768825,0.000252,2]
[426957877,1783063838000,-266.65378845,0.000255,2]
[426957863,1783063838000,-768.96859964,0.000252,2]
[426957847,1783063838000,-176.16,0.00024658,2]
[426957865,1783063838000,-10853.25428127,0.000252,2]
[426957846,1783063838000,-177.48,0.00024658,2]
[426957848,1783063838000,-667.95,0.00024793,2]
[426957851,1783063838000,-307.63785409,0.00024907,2]
[426957849,1783063838000,-205.32572257,0.00024907,2]
[426957853,1783063838000,-249.0,0.00024953,2]
[426957852,1783063838000,-265.0,0.00024953,2]
[426957850,1783063838000,-217.9821411,0.00024907,2]
[426957855,1783063838000,-3967.13439424,0.00025061,2]
[426957856,1783063838000,-1000.0,0.00025092,120]
[426957861,1783063838000,-2000.0,0.000252,2]
[426957860,1783063838000,-166.65,0.00025159,2]
[426957862,1783063838000,-1178.59095913,0.000252,2]
[426957857,1783063838000,-216.74224685,0.00025154,2]
[426957858,1783063838000,-160.0,0.00025154,2]
[426957854,1783063838000,-839.2626,0.00024961,7]
[426957859,1783063838000,-160.0,0.00025154,2]
[426957940,1783063839000,-1421.305985,0.00026,2]
[426957937,1783063839000,-1286.44185965,0.000259,2]
[426957945,1783063839000,-500.0,0.00026027,2]
[426957939,1783063839000,-165.18,0.00026,10]
[426957946,1783063839000,-500.0,0.00026099,2]
[426957944,1783063839000,-155.76472,0.0002601,2]
[426957947,1783063839000,-7838.0,0.000261,2]
[426957938,1783063839000,-500.0,0.000259,9]
[426957941,1783063839000,-1780.0,0.00026,2]
[426957942,1783063839000,-150.0,0.00026001,5]
[426957943,1783063839000,-450.65132243,0.0002601,2]
[426957948,1783063839000,-785.52136649,0.000261,2]
[426957957,1783063839000,-1178.59095913,0.000262,2]
[426957949,1783063839000,-177.48,0.00026105,7]
[426957952,1783063839000,-435.96428219,0.0002616,2]
[426957951,1783063839000,-410.65144513,0.0002616,2]
[426957953,1783063839000,-209.90848946,0.0002616,2]
[426957958,1783063839000,-768.96859964,0.000262,2]
[426957955,1783063839000,-615.27570817,0.0002616,2]
[426957954,1783063839000,-210.55826701,0.0002616,2]
[426957959,1783063839000,-308.55768825,0.000262,2]
[426957956,1783063839000,-3967.13439424,0.00026194,2]
[426957960,1783063839000,-10853.25428127,0.000262,2]
[426957962,1783063839000,-450.65132243,0.00026284,2]
[426957935,1783063839000,-308.55768825,0.000259,2]
[426957950,1783063839000,-176.16,0.00026105,7]
[426957936,1783063839000,-10853.25428127,0.000259,2]
[426957913,1783063839000,-1552.67674395,0.00025699,2]
[426957927,1783063839000,-5019.656,0.000258,11]
[426957897,1783063839000,-151.85,0.00025665,2]
[426957895,1783063839000,-248.88,0.00025665,2]
[426957907,1783063839000,-1886.42365071,0.00025699,2]
[426957901,1783063839000,-167.66,0.00025689,11]
[426957904,1783063839000,-29299.91807533,0.00025699,2]
[426957899,1783063839000,-248.85,0.00025665,2]
[426957909,1783063839000,-987.64530766,0.00025699,2]
[426957914,1783063839000,-1170.77349121,0.00025699,2]
[426957915,1783063839000,-777.2934415,0.00025699,2]
[426957918,1783063839000,-4687.04467634,0.0002393,2]
[426957917,1783063839000,-506.07880679,0.00025699,2]
[426957920,1783063839000,-1178.59095913,0.000257,2]
[426957930,1783063839000,-169.6841,0.000258,2]
[426957919,1783063839000,-50379.94985616,0.00025699,2]
[426957916,1783063839000,-4730.98108796,0.00025699,2]
[426957923,1783063839000,-10853.25428127,0.000257,2]
[426957922,1783063839000,-308.55768825,0.000257,2]
[426957925,1783063839000,-450.65132243,0.00025736,2]
[426957924,1783063839000,-1286.44185965,0.000257,2]
[426957929,1783063839000,-151.0,0.000258,2]
[426957934,1783063839000,-768.96859964,0.000259,2]
[426957928,1783063839000,-151.0,0.000258,2]
[426957931,1783063839000,-4571.15731054,0.00025848,2]
[426957933,1783063839000,-1178.59095913,0.000259,2]
[426957961,1783063839000,-1286.44185965,0.000262,2]
[426957926,1783063839000,-284.24089265,0.00025748,2]
[426957921,1783063839000,-768.96859964,0.000257,2]
[426957963,1783063839000,-266.866933,0.00026323,2]
[426957932,1783063839000,-5703.31284984,0.00025848,2]
[426957965,1783063839000,-500.0,0.00026336,2]
[426957997,1783063839000,-251.638202,0.0002638,2]
[426958006,1783063839000,-749.770396,0.0002638,2]
[426957999,1783063839000,-251.638202,0.0002638,2]
[426957998,1783063839000,-187.763118,0.0002638,2]
[426957996,1783063839000,-226.155883,0.0002638,2]
[426958005,1783063839000,-749.770396,0.0002638,2]
[426958003,1783063839000,-749.770396,0.0002638,2]
[426958004,1783063839000,-749.770396,0.0002638,2]
[426958000,1783063839000,-251.638202,0.0002638,2]
[426958002,1783063839000,-251.638202,0.0002638,2]
[426958001,1783063839000,-151.0,0.0002638,2]
[426958007,1783063839000,-437.418976,0.000264,2]
[426957995,1783063839000,-156.80197,0.0002638,2]
[426958008,1783063839000,-437.418976,0.000264,2]
[426958009,1783063839000,-437.418976,0.000264,2]
[426958013,1783063839000,-151.0,0.000264,2]
[426958011,1783063839000,-151.0,0.000264,2]
[426958012,1783063839000,-151.0,0.000264,2]
[426958014,1783063839000,-151.0,0.000264,2]
[426958019,1783063839000,-304.03379,0.000264,2]
[426958018,1783063839000,-304.03379,0.000264,2]
[426958020,1783063839000,-304.03379,0.000264,2]
[426958016,1783063839000,-212.171069,0.000264,2]
[426958021,1783063839000,-151.0,0.000264,2]
[426958022,1783063839000,-151.0,0.000264,2]
[426957964,1783063839000,-500.0,0.00026336,2]
[426958010,1783063839000,-437.418976,0.000264,2]
[426957994,1783063839000,-156.80197,0.0002638,2]
[426958017,1783063839000,-304.03379,0.000264,2]
[426957993,1783063839000,-156.80197,0.0002638,2]
[426957992,1783063839000,-156.80197,0.0002638,2]
[426957966,1783063839000,-7723.5380106,0.00026337,2]
[426957967,1783063839000,-122490.6550199,0.00026337,2]
[426957970,1783063839000,-437.418976,0.00026337,2]
[426957968,1783063839000,-2798.8485054,0.00026337,2]
[426957972,1783063839000,-437.418976,0.00026337,2]
[426957971,1783063839000,-437.418976,0.00026337,2]
[426957974,1783063839000,-175.565002,0.00026337,2]
[426957975,1783063839000,-151.0,0.00026337,2]
[426957976,1783063839000,-151.0,0.00026337,2]
[426957973,1783063839000,-151.0,0.00026337,2]
[426957977,1783063839000,-151.0,0.00026337,2]
[426957979,1783063839000,-304.03379,0.00026337,2]
[426957969,1783063839000,-437.418976,0.00026337,2]
[426957978,1783063839000,-151.0,0.00026337,2]
[426957980,1783063839000,-304.03379,0.00026337,2]
[426957988,1783063839000,-151.0,0.00026337,2]
[426957987,1783063839000,-151.0,0.00026337,2]
[426957989,1783063839000,-500.0,0.00026379,2]
[426957985,1783063839000,-151.0,0.00026337,2]
[426957991,1783063839000,-187473.6205331,0.0002638,2]
[426957983,1783063839000,-151.0,0.00026337,2]
[426957984,1783063839000,-151.0,0.00026337,2]
[426957982,1783063839000,-304.03379,0.00026337,2]
[426957981,1783063839000,-304.03379,0.00026337,2]
[426957986,1783063839000,-3866.5461333,0.00026337,2]
[426957990,1783063839000,-623.10999442,0.00026379,2]
[426958049,1783063840000,-185.37,0.00026454,2]
[426958051,1783063840000,-185.37,0.00026454,2]
[426958060,1783063840000,-185.37,0.00026464,2]
[426958052,1783063840000,-185.37,0.00026454,2]
[426958046,1783063840000,-749.770396,0.00026453,2]
[426958054,1783063840000,-185.37,0.00026455,2]
[426958055,1783063840000,-185.37,0.00026455,2]
[426958056,1783063840000,-185.37,0.00026455,2]
[426958058,1783063840000,-205.69,0.00026464,2]
[426958057,1783063840000,-185.37,0.00026464,2]
[426958064,1783063840000,-574.09,0.00026464,2]
[426958065,1783063840000,-500.0,0.00026486,2]
[426958059,1783063840000,-185.37,0.00026464,2]
[426958061,1783063840000,-185.37,0.00026464,2]
[426958063,1783063840000,-644.92,0.00026464,2]
[426958067,1783063840000,-247.77,0.00026487,2]
[426958068,1783063840000,-248.86,0.00026487,2]
[426958078,1783063840000,-157.172891,0.0002653,2]
[426958079,1783063840000,-2000.0,0.0002653,2]
[426958069,1783063840000,-185.37,0.00026487,2]
[426958048,1783063840000,-749.770396,0.00026453,2]
[426958071,1783063840000,-151.0,0.00026487,2]
[426958066,1783063840000,-152.65,0.00026487,2]
[426958050,1783063840000,-248.85,0.00026454,2]
[426958037,1783063840000,-156.80197,0.00026453,2]
[426958047,1783063840000,-749.770396,0.00026453,2]
[426958073,1783063840000,-185.38,0.00026487,2]
[426958025,1783063840000,-216.776097,0.000264,2]
[426958024,1783063840000,-151.0,0.000264,2]
[426958031,1783063840000,-151.0,0.00026453,2]
[426958026,1783063840000,-274.03175569,0.00026416,2]
[426958029,1783063840000,-112587.8870028,0.00026453,2]
[426958023,1783063840000,-151.0,0.000264,2]
[426958027,1783063840000,-157.75,0.00026424,2]
[426958030,1783063840000,-161.972684,0.00026453,2]
[426958028,1783063840000,-500.0,0.00026452,2]
[426958032,1783063840000,-151.0,0.00026453,2]
[426958034,1783063840000,-151.0,0.00026453,2]
[426958039,1783063840000,-156.80197,0.00026453,2]
[426958038,1783063840000,-156.80197,0.00026453,2]
[426958033,1783063840000,-151.0,0.00026453,2]
[426958040,1783063840000,-251.638202,0.00026453,2]
[426958043,1783063840000,-151.0,0.00026453,2]
[426958035,1783063840000,-151.0,0.00026453,2]
[426958036,1783063840000,-156.80197,0.00026453,2]